[Event "*** Titled Tuesday Blitz"]
[Site "Chess.com"]
[Date "2021.02.16"]
[Round "10"]
[White "LEGENYA1998"]
[Black "Tactictic"]
[Result "0-1"]
[WhiteElo "2300"]
[BlackElo "2429"]
[TimeControl "180+1"]
[EndTime "12:00:16 PST"]
[Termination "Tactictic won by resignation"]

1. e4 {[%clk 0:03:00.9]} 1... c5 {[%clk 0:02:50.6]} 2. c3 {[%clk 0:02:57.9]}
2... d6 {[%clk 0:02:51.5]} 3. d4 {[%clk 0:02:57.4]} 3... cxd4 {[%clk 0:02:52.4]}
4. cxd4 {[%clk 0:02:57]} 4... Nf6 {[%clk 0:02:52.2]} 5. Nc3 {[%clk 0:02:57.1]}
5... g6 {[%clk 0:02:49.9]} 6. Nf3 {[%clk 0:02:47.2]} 6... Bg7 {[%clk 0:02:49.7]}
7. Bb5+ {[%clk 0:02:43.3]} 7... Bd7 {[%clk 0:02:49]} 8. Bxd7+ {[%clk 0:02:23.2]}
8... Nbxd7 {[%clk 0:02:49.9]} 9. e5 {[%clk 0:02:23.3]} 9... dxe5 {[%clk
0:02:47.4]} 10. dxe5 {[%clk 0:02:23.4]} 10... Ng4 {[%clk 0:02:47.7]} 11. e6
{[%clk 0:02:22.7]} 11... fxe6 {[%clk 0:02:47.3]} 12. Ng5 {[%clk 0:02:18.2]}
12... Qa5 {[%clk 0:02:28.6]} 13. O-O {[%clk 0:01:55.8]} 13... Ngf6 {[%clk
0:02:18.5]} 14. Nxe6 {[%clk 0:01:55.1]} 14... Kf7 {[%clk 0:02:18.6]} 15. Ng5+
{[%clk 0:01:37.4]} 15... Ke8 {[%clk 0:02:17.8]} 16. Re1 {[%clk 0:01:19.7]} 16...
Qf5 {[%clk 0:02:07.1]} 17. Ne6 {[%clk 0:01:15.2]} 17... Rg8 {[%clk 0:01:58.4]}
18. Nc7+ {[%clk 0:01:14.3]} 18... Kf7 {[%clk 0:01:58.7]} 19. Nxa8 {[%clk
0:01:14.6]} 19... Rxa8 {[%clk 0:01:59.3]} 20. Be3 {[%clk 0:01:14.3]} 20... Kg8
{[%clk 0:01:51]} 21. Qb3+ {[%clk 0:01:13.7]} 21... e6 {[%clk 0:01:51]} 22. Rad1
{[%clk 0:01:09.4]} 22... b6 {[%clk 0:01:46.3]} 23. h3 {[%clk 0:01:02.1]} 23...
Rf8 {[%clk 0:01:42.2]} 24. Bd4 {[%clk 0:00:59.8]} 24... Nd5 {[%clk 0:01:26.7]}
25. Bxg7 {[%clk 0:00:55.2]} 25... Qxf2+ {[%clk 0:01:26.1]} 26. Kh1 {[%clk
0:00:54.8]} 26... Kxg7 {[%clk 0:01:14.3]} 27. Nxd5 {[%clk 0:00:53.4]} 27... exd5
{[%clk 0:01:14.6]} 28. Re7+ {[%clk 0:00:48.6]} 28... Rf7 {[%clk 0:01:08]} 29.
Rxf7+ {[%clk 0:00:46.3]} 29... Qxf7 {[%clk 0:01:08.9]} 30. Qxd5 {[%clk
0:00:46.1]} 30... Qxd5 {[%clk 0:01:08.8]} 31. Rxd5 {[%clk 0:00:46.3]} 31... Nf6
{[%clk 0:01:08.5]} 32. Rd6 {[%clk 0:00:45.2]} 32... Kf7 {[%clk 0:01:06.9]} 33.
Rc6 {[%clk 0:00:45.3]} 33... Ne8 {[%clk 0:01:04.9]} 34. Kh2 {[%clk 0:00:44.1]}
34... Ke7 {[%clk 0:01:03.8]} 35. Kg3 {[%clk 0:00:44.3]} 35... Kd7 {[%clk
0:01:01.3]} 36. Rc4 {[%clk 0:00:44.2]} 36... Nf6 {[%clk 0:00:57.5]} 37. Kf4
{[%clk 0:00:43.1]} 37... Kd6 {[%clk 0:00:54.6]} 38. Rc8 {[%clk 0:00:38.3]} 38...
h6 {[%clk 0:00:41.3]} 39. Rh8 {[%clk 0:00:33.9]} 39... Nd5+ {[%clk 0:00:36.8]}
40. Kg3 {[%clk 0:00:30.8]} 40... Ne7 {[%clk 0:00:33.4]} 41. Kf3 {[%clk
0:00:26.7]} 41... h5 {[%clk 0:00:31]} 42. Ra8 {[%clk 0:00:25.6]} 42... a5 {[%clk
0:00:29.9]} 43. Rd8+ {[%clk 0:00:25.7]} 43... Ke5 {[%clk 0:00:24.1]} 44. Re8
{[%clk 0:00:23.9]} 44... Ke6 {[%clk 0:00:20.1]} 45. Ke4 {[%clk 0:00:19]} 45...
Kd7 {[%clk 0:00:15.9]} 46. Rxe7+ {[%clk 0:00:19.2]} 46... Kxe7 {[%clk 0:00:16]}
47. Ke5 {[%clk 0:00:19.8]} 47... a4 {[%clk 0:00:15]} 48. b4 {[%clk 0:00:18.5]}
48... axb3 {[%clk 0:00:11.4]} 49. axb3 {[%clk 0:00:18.4]} 49... h4 {[%clk
0:00:11.6]} 50. Kf4 {[%clk 0:00:14.1]} 50... Kf6 {[%clk 0:00:11.3]} 51. Kg4
{[%clk 0:00:14.3]} 51... g5 {[%clk 0:00:11.7]} 52. Kh5 {[%clk 0:00:11.3]} 52...
Kf5 {[%clk 0:00:11.8]} 53. Kh6 {[%clk 0:00:11.8]} 53... g4 {[%clk 0:00:03.4]}
54. Kh5 {[%clk 0:00:10.8]} 54... g3 {[%clk 0:00:03.7]} 55. Kxh4 {[%clk 0:00:11]}
55... Kf4 {[%clk 0:00:04.3]} 56. Kh5 {[%clk 0:00:11.2]} 56... Ke3 {[%clk
0:00:04.6]} 57. Kg4 {[%clk 0:00:11.7]} 57... Kf2 {[%clk 0:00:05.1]} 58. h4
{[%clk 0:00:11.3]} 58... Kxg2 {[%clk 0:00:06]} 59. h5 {[%clk 0:00:11.8]} 59...
Kf2 {[%clk 0:00:06.7]} 60. h6 {[%clk 0:00:12.3]} 60... g2 {[%clk 0:00:07.6]} 61.
h7 {[%clk 0:00:12.9]} 61... g1=Q+ {[%clk 0:00:07.8]} 62. Kf5 {[%clk 0:00:13.4]}
62... Qh1 {[%clk 0:00:07.7]} 63. Kg6 {[%clk 0:00:13.4]} 63... Qa1 {[%clk
0:00:07.9]} 0-1

[Event "*** Titled Tuesday Blitz"]
[Site "Chess.com"]
[Date "2021.02.16"]
[Round "10"]
[White "Harry_Rakkel"]
[Black "ural58"]
[Result "1/2-1/2"]
[WhiteElo "2683"]
[BlackElo "2546"]
[TimeControl "180+1"]
[EndTime "12:00:17 PST"]
[Termination "Game drawn - insufficient material"]

1. d4 {[%clk 0:03:00.9]} 1... d5 {[%clk 0:02:55.3]} 2. c4 {[%clk 0:03:00]} 2...
e5 {[%clk 0:02:49.9]} 3. dxe5 {[%clk 0:02:58.1]} 3... d4 {[%clk 0:02:47.7]} 4.
Nf3 {[%clk 0:02:56.1]} 4... Nc6 {[%clk 0:02:40.5]} 5. a3 {[%clk 0:02:55.2]} 5...
g6 {[%clk 0:02:36.4]} 6. e3 {[%clk 0:02:48.9]} 6... Bg4 {[%clk 0:02:29.8]} 7.
Be2 {[%clk 0:02:43.3]} 7... Bxf3 {[%clk 0:02:26.3]} 8. Bxf3 {[%clk 0:02:40.1]}
8... Nge7 {[%clk 0:02:27.2]} 9. exd4 {[%clk 0:02:03.2]} 9... Qxd4 {[%clk
0:02:21.6]} 10. Qxd4 {[%clk 0:01:41]} 10... Nxd4 {[%clk 0:02:18.4]} 11. Bd1
{[%clk 0:01:40.5]} 11... Bg7 {[%clk 0:02:16.1]} 12. f4 {[%clk 0:01:39.4]} 12...
f6 {[%clk 0:02:06.7]} 13. exf6 {[%clk 0:01:37.3]} 13... Bxf6 {[%clk 0:02:07.6]}
14. Nc3 {[%clk 0:01:31.8]} 14... Nef5 {[%clk 0:02:04.3]} 15. Nd5 {[%clk
0:01:19.8]} 15... Bd8 {[%clk 0:01:53]} 16. Ne3 {[%clk 0:00:55.4]} 16... Bf6
{[%clk 0:01:41.7]} 17. O-O {[%clk 0:00:46.1]} 17... O-O-O {[%clk 0:01:40.9]} 18.
Nd5 {[%clk 0:00:30.1]} 18... Bg7 {[%clk 0:01:40.3]} 19. g4 {[%clk 0:00:29.8]}
19... Nd6 {[%clk 0:01:39.6]} 20. Be3 {[%clk 0:00:28.1]} 20... c6 {[%clk
0:01:38.1]} 21. Nc3 {[%clk 0:00:15.7]} 21... Nxc4 {[%clk 0:01:38.1]} 22. Bc1
{[%clk 0:00:15.7]} 22... Rhe8 {[%clk 0:01:36.6]} 23. Kh1 {[%clk 0:00:15.4]}
23... Na5 {[%clk 0:01:25.7]} 24. Rb1 {[%clk 0:00:14.4]} 24... Nab3 {[%clk
0:01:25.4]} 25. f5 {[%clk 0:00:12.4]} 25... gxf5 {[%clk 0:01:24.7]} 26. gxf5
{[%clk 0:00:13.3]} 26... Bf6 {[%clk 0:01:21]} 27. Bf4 {[%clk 0:00:11.8]} 27...
Nc5 {[%clk 0:01:11.8]} 28. Bg3 {[%clk 0:00:11]} 28... Ne4 {[%clk 0:01:03.9]} 29.
Bh5 {[%clk 0:00:08.7]} 29... Re7 {[%clk 0:01:01.9]} 30. Rbd1 {[%clk 0:00:08.1]}
30... Nxg3+ {[%clk 0:00:52.6]} 31. hxg3 {[%clk 0:00:09]} 31... Re3 {[%clk
0:00:49.9]} 32. Kg2 {[%clk 0:00:08]} 32... Rg8 {[%clk 0:00:49.8]} 33. g4 {[%clk
0:00:07.9]} 33... Rd8 {[%clk 0:00:32.5]} 34. Rde1 {[%clk 0:00:05.4]} 34... Rd3
{[%clk 0:00:29.2]} 35. Rf2 {[%clk 0:00:03.6]} 35... Bh4 {[%clk 0:00:23.6]} 36.
Ref1 {[%clk 0:00:03]} 36... Bxf2 {[%clk 0:00:23.2]} 37. Rxf2 {[%clk 0:00:03.9]}
37... Nb3 {[%clk 0:00:20.7]} 38. f6 {[%clk 0:00:03.9]} 38... Rd2 {[%clk
0:00:20.9]} 39. Ne4 {[%clk 0:00:03.8]} 39... Rxf2+ {[%clk 0:00:20.7]} 40. Kxf2
{[%clk 0:00:04.7]} 40... Nd4 {[%clk 0:00:20.9]} 41. f7 {[%clk 0:00:03.9]} 41...
Ne6 {[%clk 0:00:21.2]} 42. Nf6 {[%clk 0:00:04]} 42... h6 {[%clk 0:00:19.3]} 43.
Kf3 {[%clk 0:00:04.3]} 43... Kc7 {[%clk 0:00:19.1]} 44. Ke4 {[%clk 0:00:04.6]}
44... Kd6 {[%clk 0:00:19.7]} 45. Kf5 {[%clk 0:00:04.8]} 45... c5 {[%clk
0:00:20.1]} 46. Ng8 {[%clk 0:00:04.7]} 46... c4 {[%clk 0:00:17.3]} 47. Nxh6
{[%clk 0:00:04.7]} 47... b5 {[%clk 0:00:17.5]} 48. g5 {[%clk 0:00:04.9]} 48...
a5 {[%clk 0:00:17.8]} 49. g6 {[%clk 0:00:04.9]} 49... b4 {[%clk 0:00:18.2]} 50.
axb4 {[%clk 0:00:05.4]} 50... axb4 {[%clk 0:00:19.1]} 51. Kf6 {[%clk 0:00:05.6]}
51... c3 {[%clk 0:00:19.3]} 52. bxc3 {[%clk 0:00:06.2]} 52... bxc3 {[%clk
0:00:19.4]} 53. Bd1 {[%clk 0:00:06.7]} 53... Rc8 {[%clk 0:00:15.7]} 54. g7
{[%clk 0:00:05.5]} 54... Nxg7 {[%clk 0:00:16]} 55. Kxg7 {[%clk 0:00:05.2]} 55...
Ke5 {[%clk 0:00:16.6]} 56. Bc2 {[%clk 0:00:05.1]} 56... Kd4 {[%clk 0:00:15.3]}
57. Ng8 {[%clk 0:00:05.2]} 57... Ke3 {[%clk 0:00:13.7]} 58. Nf6 {[%clk
0:00:05.2]} 58... Rc7 {[%clk 0:00:13.6]} 59. Bg6 {[%clk 0:00:05.1]} 59... Kd2
{[%clk 0:00:12]} 60. Nd5 {[%clk 0:00:04.6]} 60... Rxf7+ {[%clk 0:00:11.2]} 61.
Kxf7 {[%clk 0:00:04.1]} 61... c2 {[%clk 0:00:12.1]} 62. Bxc2 {[%clk 0:00:03.7]}
62... Kxc2 {[%clk 0:00:12.3]} 1/2-1/2

[Event "*** Titled Tuesday Blitz"]
[Site "Chess.com"]
[Date "2021.02.16"]
[Round "10"]
[White "Fusikk"]
[Black "frenchpin"]
[Result "1/2-1/2"]
[WhiteElo "2682"]
[BlackElo "2499"]
[TimeControl "180+1"]
[EndTime "12:00:18 PST"]
[Termination "Game drawn - insufficient material"]

1. e4 {[%clk 0:03:00.9]} 1... e6 {[%clk 0:03:00.9]} 2. d4 {[%clk 0:02:58.1]}
2... d5 {[%clk 0:03:01.8]} 3. Nd2 {[%clk 0:02:58.2]} 3... c5 {[%clk 0:03:01.1]}
4. Ngf3 {[%clk 0:02:57.6]} 4... Nc6 {[%clk 0:03:00.6]} 5. exd5 {[%clk
0:02:53.9]} 5... exd5 {[%clk 0:03:01.5]} 6. Bb5 {[%clk 0:02:53.6]} 6... Qe7+
{[%clk 0:03:01.8]} 7. Qe2 {[%clk 0:02:53]} 7... Qxe2+ {[%clk 0:03:01.9]} 8. Kxe2
{[%clk 0:02:53.9]} 8... a6 {[%clk 0:03:01.1]} 9. Bxc6+ {[%clk 0:02:54]} 9...
bxc6 {[%clk 0:03:02]} 10. dxc5 {[%clk 0:02:54]} 10... Bxc5 {[%clk 0:03:01.6]}
11. Nb3 {[%clk 0:02:53.2]} 11... Bd6 {[%clk 0:03:01.9]} 12. Re1 {[%clk
0:02:53.7]} 12... Nf6 {[%clk 0:02:56]} 13. Kf1+ {[%clk 0:02:52.5]} 13... Be6
{[%clk 0:02:53]} 14. Be3 {[%clk 0:02:45.6]} 14... Rb8 {[%clk 0:02:52.6]} 15.
Rab1 {[%clk 0:02:42.7]} 15... Ne4 {[%clk 0:02:48.1]} 16. Nfd4 {[%clk 0:02:38.6]}
16... Kd7 {[%clk 0:02:37.5]} 17. f3 {[%clk 0:02:36.4]} 17... Nf6 {[%clk
0:01:59.6]} 18. Rbd1 {[%clk 0:02:04.4]} 18... Rhc8 {[%clk 0:01:50]} 19. c4
{[%clk 0:01:45]} 19... c5 {[%clk 0:01:44.7]} 20. cxd5 {[%clk 0:01:32.4]} 20...
Nxd5 {[%clk 0:01:37.7]} 21. Nxe6 {[%clk 0:01:30.1]} 21... fxe6 {[%clk
0:01:36.3]} 22. Bc1 {[%clk 0:01:04.6]} 22... Bxh2 {[%clk 0:01:30.1]} 23. Re4
{[%clk 0:00:54.1]} 23... Bd6 {[%clk 0:01:30]} 24. Rde1 {[%clk 0:00:47]} 24...
Re8 {[%clk 0:01:29.9]} 25. Nd2 {[%clk 0:00:47]} 25... Nf6 {[%clk 0:01:21.8]} 26.
Ra4 {[%clk 0:00:46.4]} 26... Ra8 {[%clk 0:00:59.5]} 27. Nc4 {[%clk 0:00:46.3]}
27... Kc6 {[%clk 0:00:59.9]} 28. b3 {[%clk 0:00:24.6]} 28... Nd5 {[%clk
0:00:59.3]} 29. Bd2 {[%clk 0:00:24.9]} 29... e5 {[%clk 0:00:56.7]} 30. Na5+
{[%clk 0:00:19.5]} 30... Kb5 {[%clk 0:00:52.8]} 31. Nc4 {[%clk 0:00:20.4]} 31...
Bc7 {[%clk 0:00:51.2]} 32. Re4 {[%clk 0:00:14.9]} 32... Re6 {[%clk 0:00:50.9]}
33. Na3+ {[%clk 0:00:14.3]} 33... Kc6 {[%clk 0:00:49.7]} 34. Rac4 {[%clk
0:00:14.8]} 34... a5 {[%clk 0:00:20.2]} 35. Be3 {[%clk 0:00:09.5]} 35... Bd6
{[%clk 0:00:17.1]} 36. Rc2 {[%clk 0:00:09.6]} 36... Nb4 {[%clk 0:00:17.1]} 37.
Rd2 {[%clk 0:00:08.3]} 37... Rd8 {[%clk 0:00:15.5]} 38. Nc4 {[%clk 0:00:08.6]}
38... Bc7 {[%clk 0:00:15.9]} 39. Rxd8 {[%clk 0:00:08.7]} 39... Bxd8 {[%clk
0:00:16.8]} 40. Nxe5+ {[%clk 0:00:08.9]} 40... Kb5 {[%clk 0:00:15.9]} 41. Nc4
{[%clk 0:00:08.5]} 41... Rxe4 {[%clk 0:00:15.2]} 42. fxe4 {[%clk 0:00:09.4]}
42... Nxa2 {[%clk 0:00:14.1]} 43. Nd6+ {[%clk 0:00:09.1]} 43... Kc6 {[%clk
0:00:13.4]} 44. Nf7 {[%clk 0:00:08.3]} 44... Bc7 {[%clk 0:00:12.5]} 45. Ng5
{[%clk 0:00:08.2]} 45... h6 {[%clk 0:00:11.8]} 46. Ne6 {[%clk 0:00:08.7]} 46...
Bd6 {[%clk 0:00:12.1]} 47. Nxg7 {[%clk 0:00:08.5]} 47... Nc3 {[%clk 0:00:10.3]}
48. Bxh6 {[%clk 0:00:06.3]} 48... Nxe4 {[%clk 0:00:09.2]} 49. Nf5 {[%clk
0:00:06.8]} 49... Be5 {[%clk 0:00:07.8]} 50. Ke2 {[%clk 0:00:06.5]} 50... Kd5
{[%clk 0:00:07.8]} 51. Kd3 {[%clk 0:00:06.5]} 51... Nf2+ {[%clk 0:00:07.1]} 52.
Ke2 {[%clk 0:00:06.5]} 52... Ng4 {[%clk 0:00:07.6]} 53. Bd2 {[%clk 0:00:05]}
53... Bc7 {[%clk 0:00:06.3]} 54. Kf3 {[%clk 0:00:04.4]} 54... Ne5+ {[%clk
0:00:06.1]} 55. Ke2 {[%clk 0:00:04.9]} 55... Ng4 {[%clk 0:00:06.1]} 56. Ne3+
{[%clk 0:00:04.6]} 56... Nxe3 {[%clk 0:00:04.8]} 57. Kxe3 {[%clk 0:00:05.5]}
57... c4 {[%clk 0:00:03.3]} 58. bxc4+ {[%clk 0:00:05.3]} 58... Kxc4 {[%clk
0:00:04.2]} 59. Bxa5 {[%clk 0:00:04.5]} 59... Bxa5 {[%clk 0:00:03.9]} 60. Ke4
{[%clk 0:00:05.4]} 60... Bd8 {[%clk 0:00:04.4]} 61. g4 {[%clk 0:00:06.3]} 61...
Bg5 {[%clk 0:00:04.3]} 62. Kf5 {[%clk 0:00:06.6]} 62... Bh4 {[%clk 0:00:04.9]}
63. g5 {[%clk 0:00:07.5]} 63... Bxg5 {[%clk 0:00:05.3]} 1/2-1/2

[Event "*** Titled Tuesday Blitz"]
[Site "Chess.com"]
[Date "2021.02.16"]
[Round "10"]
[White "Eloist"]
[Black "paulrusan"]
[Result "1-0"]
[WhiteElo "2395"]
[BlackElo "2257"]
[TimeControl "180+1"]
[EndTime "12:00:20 PST"]
[Termination "Eloist won by checkmate"]

1. e4 {[%clk 0:02:58.2]} 1... c5 {[%clk 0:02:59.8]} 2. Nf3 {[%clk 0:02:57.4]}
2... Nc6 {[%clk 0:02:59.9]} 3. Bb5 {[%clk 0:02:56.9]} 3... g6 {[%clk 0:02:59.3]}
4. Bxc6 {[%clk 0:02:56.7]} 4... dxc6 {[%clk 0:02:58.5]} 5. d3 {[%clk 0:02:56]}
5... Bg7 {[%clk 0:02:56.3]} 6. O-O {[%clk 0:02:55.8]} 6... Bg4 {[%clk
0:02:54.5]} 7. Nbd2 {[%clk 0:02:54.8]} 7... Nf6 {[%clk 0:02:50.4]} 8. h3 {[%clk
0:02:53.9]} 8... Bxf3 {[%clk 0:02:50]} 9. Qxf3 {[%clk 0:02:45.9]} 9... Nd7
{[%clk 0:02:48.9]} 10. Qg3 {[%clk 0:02:41.8]} 10... e5 {[%clk 0:02:46.2]} 11.
Nc4 {[%clk 0:02:39.4]} 11... Qe7 {[%clk 0:02:44.8]} 12. f4 {[%clk 0:02:31.6]}
12... O-O {[%clk 0:02:39.6]} 13. f5 {[%clk 0:02:27.9]} 13... b5 {[%clk
0:02:26.4]} 14. Ne3 {[%clk 0:02:24.5]} 14... Nf6 {[%clk 0:02:06.6]} 15. a4
{[%clk 0:02:02.1]} 15... Nh5 {[%clk 0:02:03.3]} 16. Qf3 {[%clk 0:01:55.4]} 16...
a6 {[%clk 0:01:59.1]} 17. Ng4 {[%clk 0:01:50]} 17... f6 {[%clk 0:01:50.6]} 18.
Be3 {[%clk 0:01:46.3]} 18... Rfd8 {[%clk 0:01:40.4]} 19. Qf2 {[%clk 0:01:42.3]}
19... Rd4 {[%clk 0:01:32.4]} 20. axb5 {[%clk 0:01:19.9]} 20... cxb5 {[%clk
0:01:31]} 21. Bxd4 {[%clk 0:01:14.8]} 21... cxd4 {[%clk 0:01:30.2]} 22. c3
{[%clk 0:01:13.6]} 22... Nf4 {[%clk 0:01:15.9]} 23. cxd4 {[%clk 0:01:11.7]}
23... Nxd3 {[%clk 0:01:15.7]} 24. Qd2 {[%clk 0:00:59.7]} 24... Nf4 {[%clk
0:01:09.8]} 25. dxe5 {[%clk 0:00:57.1]} 25... fxe5 {[%clk 0:01:09.7]} 26. Rad1
{[%clk 0:00:44.4]} 26... Rf8 {[%clk 0:00:57.7]} 27. Kh2 {[%clk 0:00:32.9]} 27...
gxf5 {[%clk 0:00:57.3]} 28. exf5 {[%clk 0:00:32.1]} 28... h5 {[%clk 0:00:47.4]}
29. f6 {[%clk 0:00:18.7]} 29... Bxf6 {[%clk 0:00:42.9]} 30. Nxf6+ {[%clk
0:00:18.6]} 30... Rxf6 {[%clk 0:00:43.1]} 31. Qd8+ {[%clk 0:00:17.3]} 31... Qxd8
{[%clk 0:00:43.2]} 32. Rxd8+ {[%clk 0:00:17.7]} 32... Kg7 {[%clk 0:00:43.1]} 33.
g3 {[%clk 0:00:17.8]} 33... Ne6 {[%clk 0:00:41.8]} 34. Rd7+ {[%clk 0:00:17.8]}
34... Kg6 {[%clk 0:00:40.7]} 35. Rxf6+ {[%clk 0:00:18.1]} 35... Kxf6 {[%clk
0:00:40.9]} 36. Ra7 {[%clk 0:00:17.3]} 36... h4 {[%clk 0:00:37.9]} 37. Rxa6
{[%clk 0:00:15.7]} 37... hxg3+ {[%clk 0:00:37.2]} 38. Kxg3 {[%clk 0:00:16.6]}
38... Kf5 {[%clk 0:00:36.8]} 39. Rb6 {[%clk 0:00:14.6]} 39... Nd4 {[%clk
0:00:32.4]} 40. h4 {[%clk 0:00:11.4]} 40... e4 {[%clk 0:00:32.5]} 41. Kf2 {[%clk
0:00:10.5]} 41... Kf4 {[%clk 0:00:31]} 42. Rf6+ {[%clk 0:00:10]} 42... Nf5
{[%clk 0:00:31.2]} 43. h5 {[%clk 0:00:08.8]} 43... e3+ {[%clk 0:00:30.5]} 44.
Ke2 {[%clk 0:00:08.5]} 44... Ke4 {[%clk 0:00:26.7]} 45. h6 {[%clk 0:00:06.9]}
45... Nd4+ {[%clk 0:00:20.1]} 46. Ke1 {[%clk 0:00:07]} 46... Kd3 {[%clk
0:00:19]} 47. Rd6 {[%clk 0:00:06.3]} 47... e2 {[%clk 0:00:14]} 48. Rxd4+ {[%clk
0:00:06.4]} 48... Kxd4 {[%clk 0:00:14.1]} 49. h7 {[%clk 0:00:06.9]} 49... Kd3
{[%clk 0:00:13]} 50. h8=Q {[%clk 0:00:06.7]} 50... b4 {[%clk 0:00:13.4]} 51. Qe5
{[%clk 0:00:05.7]} 51... Kc2 {[%clk 0:00:11.2]} 52. Qxe2+ {[%clk 0:00:06.6]}
52... Kb1 {[%clk 0:00:10.4]} 53. Qd2 {[%clk 0:00:07.5]} 53... b3 {[%clk
0:00:10]} 54. Ke2 {[%clk 0:00:08.4]} 54... Ka2 {[%clk 0:00:09.1]} 55. Kd3 {[%clk
0:00:08.6]} 55... Ka1 {[%clk 0:00:08.6]} 56. Kc4 {[%clk 0:00:08.8]} 56... Ka2
{[%clk 0:00:08.8]} 57. Kb4 {[%clk 0:00:08]} 57... Ka1 {[%clk 0:00:08.5]} 58.
Qc1+ {[%clk 0:00:07.9]} 58... Ka2 {[%clk 0:00:08.7]} 59. Qc3 {[%clk 0:00:04.6]}
59... Ka1 {[%clk 0:00:08.2]} 60. Kxb3 {[%clk 0:00:04.4]} 60... Kb1 {[%clk
0:00:07.9]} 61. Qe1# {[%clk 0:00:04.2]} 1-0

[Event "*** Titled Tuesday Blitz"]
[Site "Chess.com"]
[Date "2021.02.16"]
[Round "10"]
[White "Buffy7"]
[Black "Ave_Mariia"]
[Result "1/2-1/2"]
[WhiteElo "2636"]
[BlackElo "2499"]
[TimeControl "180+1"]
[EndTime "12:00:27 PST"]
[Termination "Game drawn - insufficient material"]

1. c4 {[%clk 0:03:00.9]} 1... c5 {[%clk 0:02:57.9]} 2. Nf3 {[%clk 0:02:58.2]}
2... Nc6 {[%clk 0:02:57.7]} 3. Nc3 {[%clk 0:02:56.9]} 3... g6 {[%clk 0:02:57.6]}
4. e3 {[%clk 0:02:56.5]} 4... Bg7 {[%clk 0:02:42.2]} 5. d4 {[%clk 0:02:57.4]}
5... cxd4 {[%clk 0:02:34.4]} 6. exd4 {[%clk 0:02:57.1]} 6... d6 {[%clk
0:02:34.9]} 7. h3 {[%clk 0:02:55.2]} 7... Nf6 {[%clk 0:02:34.9]} 8. Be2 {[%clk
0:02:51.4]} 8... O-O {[%clk 0:02:34.3]} 9. Be3 {[%clk 0:02:52]} 9... d5 {[%clk
0:02:25.4]} 10. O-O {[%clk 0:02:51.6]} 10... h6 {[%clk 0:02:23.4]} 11. a3 {[%clk
0:02:49.4]} 11... Be6 {[%clk 0:02:22.7]} 12. c5 {[%clk 0:02:39.8]} 12... Bf5
{[%clk 0:02:15]} 13. b4 {[%clk 0:02:31.4]} 13... a6 {[%clk 0:02:14.1]} 14. Re1
{[%clk 0:02:21]} 14... Ne4 {[%clk 0:02:14.2]} 15. Qb3 {[%clk 0:02:15.9]} 15...
Nxc3 {[%clk 0:02:07.4]} 16. Qxc3 {[%clk 0:02:16.8]} 16... Re8 {[%clk 0:02:06.4]}
17. Rad1 {[%clk 0:02:10.1]} 17... e5 {[%clk 0:02:05.8]} 18. dxe5 {[%clk
0:02:07.6]} 18... Nxe5 {[%clk 0:01:53.6]} 19. Bd4 {[%clk 0:02:00.2]} 19... Nxf3+
{[%clk 0:01:36.2]} 20. Bxf3 {[%clk 0:02:01.1]} 20... Bxd4 {[%clk 0:01:32.2]} 21.
Qxd4 {[%clk 0:01:49]} 21... Be4 {[%clk 0:01:19.2]} 22. Bxe4 {[%clk 0:01:38.5]}
22... dxe4 {[%clk 0:01:19.5]} 23. Qxd8 {[%clk 0:01:34.5]} 23... Raxd8 {[%clk
0:01:17.7]} 24. Rxd8 {[%clk 0:01:35.4]} 24... Rxd8 {[%clk 0:01:18.3]} 25. Rxe4
{[%clk 0:01:36]} 25... Rd3 {[%clk 0:01:14.4]} 26. Re7 {[%clk 0:01:16.5]} 26...
Rxa3 {[%clk 0:01:11.9]} 27. Rxb7 {[%clk 0:01:16.4]} 27... Rb3 {[%clk 0:01:05.8]}
28. Rb6 {[%clk 0:01:09.9]} 28... Kf8 {[%clk 0:01:00]} 29. Kf1 {[%clk 0:01:05]}
29... Rb2 {[%clk 0:00:59.3]} 30. h4 {[%clk 0:01:00.3]} 30... h5 {[%clk
0:00:58.5]} 31. g3 {[%clk 0:01:00.4]} 31... Ke7 {[%clk 0:00:58.6]} 32. Kg2
{[%clk 0:01:00.1]} 32... Rb3 {[%clk 0:00:57.1]} 33. Kf1 {[%clk 0:00:59.3]} 33...
Rb2 {[%clk 0:00:57.2]} 34. Ke1 {[%clk 0:00:59.4]} 34... Kd7 {[%clk 0:00:49.1]}
35. f4 {[%clk 0:00:38.1]} 35... Ra2 {[%clk 0:00:36.6]} 36. Kd1 {[%clk
0:00:37.6]} 36... a5 {[%clk 0:00:36.7]} 37. b5 {[%clk 0:00:37]} 37... a4 {[%clk
0:00:30.2]} 38. Kc1 {[%clk 0:00:34.9]} 38... a3 {[%clk 0:00:23.8]} 39. Rb7+
{[%clk 0:00:34]} 39... Ke6 {[%clk 0:00:23.4]} 40. Kb1 {[%clk 0:00:18]} 40... Rg2
{[%clk 0:00:17.6]} 41. Ra7 {[%clk 0:00:15.4]} 41... a2+ {[%clk 0:00:11.5]} 42.
Ka1 {[%clk 0:00:15.4]} 42... Kd5 {[%clk 0:00:10.8]} 43. b6 {[%clk 0:00:13.2]}
43... Kxc5 {[%clk 0:00:05]} 44. b7 {[%clk 0:00:12.9]} 44... Rg1+ {[%clk
0:00:04.5]} 45. Kxa2 {[%clk 0:00:12.6]} 45... Rg2+ {[%clk 0:00:04.9]} 46. Ka3
{[%clk 0:00:09.8]} 46... Rxg3+ {[%clk 0:00:05.1]} 47. Kb2 {[%clk 0:00:05.8]}
47... Rg2+ {[%clk 0:00:05.1]} 48. Kc3 {[%clk 0:00:06.1]} 48... Rg3+ {[%clk
0:00:05.2]} 49. Kc2 {[%clk 0:00:06.5]} 49... Rg2+ {[%clk 0:00:05.4]} 50. Kc1
{[%clk 0:00:06.9]} 50... Rg1+ {[%clk 0:00:05]} 51. Kc2 {[%clk 0:00:06.7]} 51...
Rg2+ {[%clk 0:00:05.3]} 52. Kd3 {[%clk 0:00:05.5]} 52... Rb2 {[%clk 0:00:05]}
53. b8=Q {[%clk 0:00:05.4]} 53... Rxb8 {[%clk 0:00:04.6]} 54. Rxf7 {[%clk
0:00:06.3]} 54... Kd5 {[%clk 0:00:03.5]} 55. Rf6 {[%clk 0:00:05.1]} 55... Rb3+
{[%clk 0:00:03.7]} 56. Ke2 {[%clk 0:00:05.5]} 56... Rg3 {[%clk 0:00:03.9]} 57.
Kf2 {[%clk 0:00:05.2]} 57... Rg4 {[%clk 0:00:04]} 58. Kf3 {[%clk 0:00:06.1]}
58... Rxh4 {[%clk 0:00:04.2]} 59. Rxg6 {[%clk 0:00:06.7]} 59... Rh3+ {[%clk
0:00:03.4]} 60. Kg2 {[%clk 0:00:06.4]} 60... Rb3 {[%clk 0:00:03.1]} 61. Rg5+
{[%clk 0:00:06.9]} 61... Ke4 {[%clk 0:00:03.2]} 62. Rxh5 {[%clk 0:00:07.8]}
62... Kxf4 {[%clk 0:00:03.6]} 63. Rh4+ {[%clk 0:00:08.7]} 63... Kg5 {[%clk
0:00:03.9]} 64. Rh3 {[%clk 0:00:09.6]} 64... Rxh3 {[%clk 0:00:03.3]} 65. Kxh3
{[%clk 0:00:10.5]} 1/2-1/2